bitfinex-derivatives/quotes_SOLF0:USTF0_20241224
["timestamp","ask_amount","ask_price","bid_price","bid_amount"]
[1735064490480,12.35630111,197.06,196.96,20.93918453]
[1735064490773,12.35630111,197.06,196.99,2.5397]
[1735064491078,12.35630111,197.06,196.96,20.93918453]
[1735064491381,12.35630111,197.06,196.95,20.93918453]
[1735064492269,2.539,197.04,196.94,20.93918453]
[1735064492779,2.539,197.04,196.99,2.5397]
[1735064492974,12.35630111,197.06,196.94,20.93918453]
[1735064493175,2.539,197.05,196.93,24.89379523]
[1735064493779,2.539,197.05,196.94,20.93918453]
[1735064493976,2.539,197.05,196.97,2.5399]
[1735064494177,2.539,197.05,196.94,20.93918453]
[1735064494578,2.539,197.05,197.0,2.5394]
[1735064494875,14.89510111,197.06,196.94,20.93918453]
[1735064495072,15.66660111,197.09,196.95,12.35630111]
[1735064495272,12.35630111,197.09,196.95,12.35630111]
[1735064495683,12.35630111,197.09,197.05,2.5388]
[1735064496079,14.89470111,197.09,197.05,2.5388]
[1735064496578,9.4128,197.17,196.98,33.29548564]
[1735064496783,12.35630111,197.11,196.98,33.29548564]
[1735064497381,12.35630111,197.11,196.99,3.9546107]
[1735064497982,12.35630111,197.08,196.99,3.9546107]
[1735064498181,4.24,197.07,196.99,3.9546107]
[1735064498585,2.5389,197.06,196.99,3.9546107]
[1735064498785,12.35630111,197.05,196.96,20.93918453]
[1735064499586,2.5391,197.04,196.99,2.5396]
[1735064499787,12.35630111,197.05,196.99,2.5396]
[1735064499986,12.35630111,197.05,196.94,20.93918453]
[1735064500182,2.5396,197.0,196.95,2.5402]
[1735064500385,12.35630111,197.02,196.94,20.93918453]
[1735064500587,12.35630111,196.99,196.94,20.93918453]
[1735064500884,12.35630111,196.99,196.93,20.93918453]
[1735064501285,12.35630111,196.99,196.93,23.47958453]
[1735064501682,12.35630111,196.99,196.93,2.5404]
[1735064502281,12.35630111,196.99,196.92,2.5406]
[1735064502587,12.35630111,196.99,196.89,20.93918453]
[1735064502783,2.5403,196.94,196.89,20.93918453]
[1735064502979,2.5403,196.94,196.89,23.48018453]
[1735064503384,2.5403,196.94,196.88,55.56395725]
[1735064503385,2.5403,196.94,196.88,20.93918453]
[1735064503581,4.24,196.93,196.88,20.93918453]
[1735064504092,4.24,196.93,196.9,2.5407]
[1735064504690,4.24,196.93,196.85,12.35630111]
[1735064504993,4.24,196.93,196.84,20.93918453]
[1735064505386,2.5413,196.87,196.84,20.93918453]
[1735064505690,12.35630111,196.89,196.86,3.96844426]
[1735064505886,2.5409,196.9,196.86,3.96844426]
[1735064506091,12.35630111,196.92,196.86,3.96844426]
[1735064506592,2.541,196.9,196.86,3.96844426]
[1735064506792,2.541,196.9,196.78,33.29548564]
[1735064506987,12.35630111,196.92,196.78,33.29548564]
[1735064507188,2.5407,196.91,196.86,2.5413]
[1735064508094,12.35630111,196.92,196.79,20.93918453]
[1735064508395,2.541,196.89,196.79,20.93918453]
[1735064508908,2.541,196.89,196.83,2.5416]
[1735064509301,2.5411,196.88,196.83,2.5416]
[1735064509494,4.24,196.93,196.78,3.96751563]
[1735064509495,12.35630111,196.89,196.78,24.90670016]
[1735064509998,12.35630111,196.86,196.78,24.90670016]
[1735064510191,4.24,196.85,196.78,24.90670016]
[1735064510688,4.24,196.85,196.77,2.5425]
[1735064510897,4.24,196.85,196.74,24.90670016]
[1735064511296,2.5419,196.83,196.77,2.5424]
[1735064512295,2.5419,196.82,196.77,2.5424]
[1735064512795,4.24,196.85,196.77,2.5424]
[1735064512990,12.35630111,196.86,196.72,12.35630111]
[1735064513294,6.5162,196.88,196.75,12.35630111]
[1735064513491,2.5413,196.87,196.76,2.5426]
[1735064513692,6.5162,196.88,196.75,12.35630111]
[1735064513988,2.5412,196.87,196.82,2.5418]
[1735064514187,6.5162,196.88,196.78,12.35630111]
[1735064514591,6.5162,196.88,196.85,2.5415]
[1735064516595,2.5415,196.86,196.78,20.93918453]
[1735064517500,2.5415,196.86,196.76,24.88682336]
[1735064517888,18.87250111,196.88,196.76,24.88682336]
[1735064518102,2.5419,196.83,196.78,2.5424]
[1735064518302,12.35630111,196.85,196.76,24.88682336]
[1735064518493,12.35630111,196.85,196.76,20.93918453]
[1735064518698,2.5419,196.82,196.77,2.5425]
[1735064518895,12.35630111,196.86,196.76,20.93918453]
[1735064519300,12.35630111,196.86,196.74,12.35630111]
[1735064519693,9.0574,196.88,196.78,2.5424]
[1735064519997,9.0574,196.88,196.74,12.35630111]
[1735064520189,9.0574,196.88,196.77,20.93918453]
[1735064520190,6.5162,196.88,196.77,20.93918453]
[1735064520389,2.5415,196.86,196.81,2.542]
[1735064520594,12.35630111,196.86,196.77,20.93918453]
[1735064520808,12.35630111,196.86,196.76,20.93918453]
[1735064521099,2.5418,196.83,196.78,2.5424]
[1735064521992,2.5418,196.83,196.75,59.5063455]
[1735064521993,12.35630111,196.86,196.8,2.5421]
[1735064522699,2.5418,196.83,196.78,2.5424]
[1735064523200,2.5418,196.83,196.74,20.93918453]
[1735064523201,12.35630111,196.83,196.74,20.93918453]
[1735064523399,4.26,196.82,196.74,20.93918453]
[1735064523602,12.35630111,196.8,196.74,20.93918453]
[1735064523802,2.5427,196.76,196.72,24.87968028]
[1735064524902,2.5427,196.76,196.72,20.93918453]
[1735064525102,2.5427,196.76,196.71,58.10715725]
[1735064525103,2.5427,196.76,196.71,2.5432]
[1735064525299,6.7028,196.75,196.7,2.5434]
[1735064525605,4.16,196.75,196.67,20.93918453]
[1735064526000,4.16,196.75,196.65,20.93918453]
[1735064526200,2.5429,196.74,196.68,2.5437]
[1735064526400,2.5429,196.74,196.65,20.93918453]
[1735064526605,4.16,196.75,196.65,20.93918453]
[1735064527204,4.16,196.75,196.64,20.93918453]
[1735064527402,12.35630111,196.77,196.64,20.93918453]
[1735064527605,6.7027,196.76,196.64,20.93918453]
[1735064527806,6.7027,196.76,196.64,3.93576413]
[1735064528304,4.16,196.76,196.64,3.93576413]
[1735064528507,4.16,196.76,196.71,2.5432]
[1735064528705,4.16,196.76,196.64,3.93576413]
[1735064530206,2.543,196.74,196.67,2.5437]
[1735064530503,12.35630111,196.74,196.62,20.93918453]
[1735064530706,3.25,196.73,196.62,20.93918453]
[1735064531206,2.5433,196.71,196.66,2.5438]
[1735064531398,3.25,196.73,196.6,20.93918453]
[1735064531903,3.25,196.73,196.61,12.35630111]
[1735064532103,3.25,196.73,196.61,33.29548564]
[1735064532903,3.25,196.73,196.64,12.35630111]
[1735064533108,4.16,196.73,196.64,12.35630111]
[1735064533301,12.35630111,196.78,196.64,12.35630111]
[1735064533507,4.16,196.77,196.75,2.5428]
[1735064533806,4.16,196.77,196.65,24.87596336]
[1735064534007,4.16,196.77,196.67,12.35630111]
[1735064534404,4.16,196.77,196.69,20.93918453]
[1735064534607,4.16,196.77,196.73,2.5429]
[1735064534909,4.16,196.77,196.69,20.93918453]
[1735064535103,4.16,196.77,196.71,20.93918453]
[1735064535804,2.5427,196.76,196.73,20.93918453]
[1735064536706,6.7024,196.77,196.72,2.5429]
[1735064536905,4.16,196.77,196.7,36.82060861]
[1735064537106,6.363,196.79,196.7,36.82060861]
[1735064537310,10.523,196.79,196.7,36.82060861]
[1735064537610,10.523,196.79,196.73,20.93918453]
[1735064538011,10.523,196.79,196.74,2.5427]
[1735064538312,6.363,196.79,196.74,40.7695969]
[1735064538512,4.16,196.78,196.76,2.5424]
[1735064538809,4.16,196.78,196.74,40.7695969]
[1735064539009,6.7023,196.78,196.74,43.3122969]
[1735064539205,6.7023,196.78,196.75,20.93918453]
[1735064539811,4.16,196.78,196.75,20.93918453]
[1735064540311,65.21630111,196.82,196.73,20.93918453]
[1735064540612,4.16,196.81,196.73,20.93918453]
[1735064541015,4.16,196.84,196.82,2.5417]
[1735064541209,6.2102,196.89,196.78,12.35630111]
[1735064541409,4.16,196.94,196.81,12.35630111]
[1735064541604,4.16,196.93,196.88,2.5409]
[1735064541809,4.16,196.93,196.81,12.35630111]
[1735064541810,12.35630111,196.92,196.81,12.35630111]
[1735064542009,12.35630111,196.92,196.79,33.29548564]
[1735064542210,12.35630111,196.92,196.84,2.5415]
[1735064542512,12.35630111,196.92,196.87,20.93918453]
[1735064542907,12.35630111,196.89,196.87,20.93918453]
[1735064543110,12.35630111,196.89,196.87,15.90888453]
[1735064543312,2.5411,196.88,196.83,55.56395725]
[1735064543514,12.35630111,196.89,196.83,55.56395725]
[1735064544107,12.35630111,196.89,196.84,3.96146685]
[1735064544311,2.5412,196.87,196.84,3.96146685]
[1735064544511,16.51630111,196.86,196.84,3.96146685]
[1735064544713,16.51630111,196.86,196.81,79.19201709]
[1735064545416,12.35630111,196.83,196.81,79.19201709]
[1735064545610,12.35630111,196.83,196.78,81.73431709]
[1735064545806,14.89810111,196.83,196.78,81.73431709]
[1735064546516,14.89810111,196.83,196.79,3.93915916]
[1735064547417,14.89810111,196.83,196.77,79.19201709]
[1735064547418,12.35630111,196.83,196.76,79.19201709]
[1735064547717,12.35630111,196.83,196.8,2.542]
[1735064547916,12.35630111,196.83,196.76,79.19201709]
[1735064548118,12.35630111,196.83,196.79,55.56395725]
[1735064549220,12.35630111,196.83,196.8,19.6939046]
[1735064549718,4.16,196.86,196.81,2.542]
[1735064549719,19.05780111,196.86,196.81,2.542]
[1735064549918,19.05780111,196.86,196.81,6.48078092]
[1735064550320,19.05780111,196.86,196.81,3.93878092]
[1735064550519,19.05780111,196.86,196.82,2.5418]
[1735064554019,16.51630111,196.86,196.83,2.5418]
[1735064554319,16.51630111,196.86,196.78,15.76478309]
[1735064554512,16.51630111,196.86,196.85,2.5415]
[1735064555920,16.35630111,196.86,196.85,2.5415]
[1735064556221,12.35630111,196.86,196.85,2.5415]
[1735064556420,16.35630111,196.86,196.85,2.5415]
[1735064556920,12.35630111,196.86,196.85,2.5415]
[1735064557220,16.35630111,196.86,196.85,2.5415]
[1735064557721,16.35630111,196.86,196.8,15.76478309]
[1735064558023,16.35630111,196.86,196.78,55.56395725]
[1735064558622,16.35630111,196.86,196.77,3.93621266]
[1735064559522,16.35630111,196.86,196.75,59.50016991]
[1735064559722,16.35630111,196.86,196.8,2.5421]
[1735064559927,12.35630111,196.83,196.75,59.50016991]
[1735064560125,12.35630111,196.83,196.75,55.56395725]
[1735064560432,12.35630111,196.83,196.73,55.56395725]
[1735064560928,12.35630111,196.83,196.8,2.542]
[1735064562426,14.89810111,196.83,196.78,2.5424]
[1735064563026,12.35630111,196.83,196.78,2.5424]
[1735064563223,2.5419,196.82,196.78,2.5424]
[1735064563423,4.0,196.81,196.78,2.5424]
[1735064563620,6.542,196.81,196.76,2.5426]
[1735064564527,6.542,196.81,196.71,58.91725725]
[1735064564732,6.542,196.81,196.77,2.5425]
[1735064567733,4.0,196.81,196.71,58.91725725]
[1735064567925,2.5423,196.79,196.75,2.5426]
[1735064568330,4.0,196.81,196.72,55.56395725]
[1735064568532,6.5421,196.81,196.74,2.5428]
[1735064568732,6.5421,196.81,196.73,3.95112057]
[1735064568931,4.0,196.81,196.73,3.95112057]
[1735064569134,6.542,196.81,196.77,2.5425]
[1735064569432,4.0,196.81,196.74,3.95112057]
[1735064570232,6.542,196.81,196.76,2.5426]
[1735064570438,6.542,196.81,196.75,3.95112057]
[1735064571044,6.542,196.81,196.76,2.5426]
[1735064572831,6.542,196.81,196.73,71.32874034]
[1735064573036,6.542,196.81,196.77,2.5425]
[1735064573840,2.542,196.81,196.77,2.5425]
[1735064574040,4.0,196.8,196.77,2.5425]
[1735064574942,4.0,196.8,196.79,2.5423]
[1735064575439,4.0,196.83,196.82,2.5418]
[1735064575941,3.1242,196.89,196.75,12.35630111]
[1735064575942,15.48050111,196.89,196.75,12.35630111]
[1735064576141,4.0,196.88,196.78,21.1911737]
[1735064576933,6.5411,196.88,196.83,2.5416]
[1735064577943,4.0,196.87,196.85,2.5414]
[1735064578341,4.0,196.87,196.81,21.1911737]
[1735064578642,4.0,196.86,196.81,21.1911737]
[1735064578838,4.0,196.86,196.81,36.95595679]
[1735064579240,4.0,196.86,196.82,2.5418]
[1735064579442,4.0,196.86,196.81,36.95595679]
[1735064579744,4.0,196.86,196.82,40.91007278]
[1735064579942,4.0,196.86,196.83,2.5416]
[1735064580745,3.1003,196.9,196.79,36.95595679]
[1735064580945,4.0,196.89,196.8,3.1464]
[1735064581344,4.0,196.89,196.84,2.5415]
[1735064581543,4.0,196.89,196.83,21.1911737]
[1735064581944,3.1003,196.9,196.83,21.1911737]
[1735064582244,4.0,196.92,196.83,21.1911737]
[1735064582647,4.0,196.92,196.84,40.90934583]
[1735064583439,4.0,196.93,196.84,40.90934583]
[1735064583844,12.35630111,196.95,196.86,21.1911737]
[1735064584141,3.78,196.94,196.91,2.5406]
[1735064584348,3.78,196.94,196.86,21.1911737]
[1735064584744,3.78,196.94,196.87,21.1911737]
[1735064584943,3.78,196.94,196.93,2.5404]
[1735064585638,3.78,196.95,196.92,2.5406]
[1735064585840,16.13630111,196.95,196.88,21.1911737]
[1735064586038,12.35630111,196.92,196.88,21.1911737]
[1735064586441,12.35630111,196.92,196.89,2.541]
[1735064586642,12.35630111,196.92,196.88,21.1911737]
[1735064587451,12.35630111,196.92,196.88,2.5411]
[1735064587647,12.35630111,196.92,196.83,21.1911737]
[1735064587863,12.35630111,196.86,196.83,21.1911737]
[1735064588051,3.78,196.85,196.83,21.1911737]
[1735064588851,3.78,196.85,196.81,2.542]
[1735064590254,6.3215,196.85,196.79,2.5421]
[1735064591054,6.3215,196.85,196.8,2.5421]
[1735064591256,3.78,196.85,196.75,21.1911737]
[1735064591552,14.89810111,196.83,196.75,21.1911737]
[1735064591753,2.5418,196.83,196.78,2.5423]
[1735064591959,14.89790111,196.84,196.74,21.1911737]
[1735064592154,3.78,196.85,196.74,33.54747481]
[1735064592558,3.78,196.85,196.75,25.13345333]
[1735064592756,3.78,196.85,196.81,2.5419]
[1735064592956,3.78,196.85,196.75,25.13345333]
[1735064593163,3.78,196.85,196.81,2.5419]
[1735064594057,3.78,196.85,196.76,21.1911737]
[1735064594360,2.5417,196.83,196.78,2.5423]
[1735064596657,2.542,196.81,196.76,2.5426]
[1735064596857,14.89830111,196.81,196.76,2.5426]
[1735064597157,2.5423,196.79,196.74,23.7339737]
[1735064597362,3.78,196.78,196.74,23.7339737]
[1735064597557,3.78,196.78,196.74,21.1911737]
[1735064597762,2.5426,196.77,196.73,21.1911737]
[1735064597967,16.13630111,196.78,196.73,21.1911737]
[1735064598553,16.13630111,196.78,196.69,2.5434]
[1735064598963,2.5429,196.75,196.69,2.5434]
[1735064599164,2.5429,196.75,196.7,2.5434]
[1735064599361,16.13630111,196.78,196.68,21.1911737]
[1735064599666,2.5426,196.77,196.68,21.1911737]
[1735064599864,2.5426,196.77,196.67,58.65365725]
[1735064599865,16.13630111,196.78,196.73,2.543]
[1735064600163,16.13630111,196.78,196.67,3.0897]
[1735064600363,16.13630111,196.78,196.75,2.5428]
[1735064600571,3.78,196.78,196.75,2.5428]
[1735064600765,3.78,196.77,196.75,2.5428]
[1735064604368,3.78,196.77,196.76,2.5427]
[1735064605264,3.78,196.79,196.78,2.5424]
[1735064606068,3.78,196.79,196.71,21.1911737]
[1735064606769,6.3223,196.79,196.71,21.1911737]
[1735064606971,12.35630111,196.78,196.72,3.93700901]
[1735064607367,2.5432,196.72,196.71,16.1581737]
[1735064607668,16.13630111,196.72,196.65,55.56395725]
[1735064608070,2.5434,196.7,196.65,55.56395725]
[1735064608265,16.13630111,196.72,196.65,55.56395725]
[1735064608659,124.0,196.93,196.65,55.56395725]
[1735064608860,5.0796,196.99,196.63,154.49347273]
[1735064608861,12.35630111,196.81,196.68,12.35630111]
[1735064609073,3.78,196.8,196.68,12.35630111]
[1735064609265,6.3221,196.8,196.75,2.5428]
[1735064609462,3.78,196.8,196.67,3.0938]
[1735064610271,12.35630111,196.78,196.67,3.0938]
[1735064610975,14.89910111,196.75,196.69,2.5434]
[1735064611270,3.78,196.74,196.68,2.5436]
[1735064611473,12.35630111,196.72,196.64,3.0393]
[1735064612169,2.5433,196.71,196.65,2.5441]
[1735064612476,12.35630111,196.72,196.65,2.5441]
[1735064612985,14.89990111,196.69,196.63,2.5443]
[1735064613189,3.78,196.68,196.61,6.2822]
[1735064613880,3.78,196.68,196.59,3.0393]
[1735064614080,3.78,196.68,196.56,55.56395725]
[1735064614384,12.35630111,196.66,196.55,62.15995725]
[1735064614583,2.5445,196.62,196.55,64.70525725]
[1735064614787,3.68,196.61,196.55,64.70525725]
[1735064615181,3.68,196.61,196.55,55.56395725]
[1735064615386,2.5447,196.6,196.55,55.56395725]
[1735064615886,2.5447,196.6,196.51,15.64640111]
[1735064616382,3.68,196.61,196.51,15.64640111]
[1735064616682,3.68,196.61,196.49,6.4812]
[1735064617187,3.68,196.61,196.52,2.5457]
[1735064617188,2.5449,196.59,196.52,2.5457]
[1735064617583,2.545,196.58,196.5,2.5459]
[1735064617791,12.35630111,196.57,196.45,6.3892]
[1735064617983,12.35630111,196.57,196.44,67.92025836]
[1735064618179,2.5455,196.54,196.44,15.47040111]
[1735064618384,3.68,196.53,196.44,15.47040111]
[1735064618786,3.68,196.53,196.47,2.5464]
[1735064619386,3.68,196.53,196.49,2.5461]
[1735064619587,12.35630111,196.6,196.47,12.35630111]
[1735064619790,3.68,196.59,196.48,3.1174]
[1735064621190,6.2248,196.59,196.48,3.1174]
[1735064621389,3.68,196.59,196.49,12.35630111]
[1735064621592,3.68,196.59,196.48,3.1174]
[1735064621890,12.35630111,196.57,196.5,2.5459]
[1735064622097,12.35630111,196.57,196.48,3.1174]
[1735064622592,3.68,196.59,196.42,3.2751]
[1735064622798,12.35630111,196.51,196.42,3.2751]
[1735064622997,3.68,196.5,196.42,3.2751]
[1735064623400,3.68,196.5,196.45,2.5466]
[1735064624193,12.35630111,196.51,196.42,3.2751]
[1735064624394,12.35630111,196.51,196.4,6.6655]
[1735064624395,3.68,196.5,196.4,0.1917]
[1735064624606,12.35630111,196.48,196.4,0.1917]
[1735064624799,3.68,196.47,196.4,0.1917]
[1735064625200,3.68,196.47,196.41,2.5472]
[1735064626107,3.68,196.47,196.4,0.1917]
[1735064626108,12.35630111,196.45,196.4,0.1917]
[1735064626499,12.35630111,196.42,196.33,55.96014481]
[1735064626694,14.90390111,196.39,196.33,55.96014481]
[1735064626904,3.68,196.38,196.33,55.96014481]
[1735064627103,3.68,196.38,196.32,2.5483]
[1735064627304,3.68,196.38,196.26,62.33264481]
[1735064627797,3.68,196.42,196.31,12.35630111]
[1735064628000,3.68,196.42,196.26,62.33264481]
[1735064628205,3.68,196.42,196.28,19.92364215]
[1735064628703,3.68,196.42,196.29,0.93602196]
[1735064628903,19.92364215,196.46,196.29,0.93602196]
[1735064629206,3.68,196.45,196.29,0.93602196]
[1735064629904,3.68,196.45,196.39,2.5473]
[1735064630105,3.68,196.45,196.3,19.92364215]
[1735064630305,3.68,196.45,196.31,0.93598004]
[1735064630502,3.68,196.44,196.31,0.93598004]
[1735064630702,9.4677,196.47,196.32,3.1801]
[1735064631003,3.68,196.46,196.43,2.5468]
[1735064632901,2.5462,196.49,196.43,2.5469]
[1735064633106,19.92364215,196.5,196.43,2.5469]
[1735064633314,3.68,196.49,196.34,19.92364215]
[1735064634012,6.2262,196.49,196.43,2.5468]
[1735064634708,3.68,196.49,196.34,19.92364215]
[1735064634910,3.68,196.49,196.44,2.5467]
[1735064635716,19.92364215,196.5,196.46,2.5465]
[1735064635909,3.68,196.48,196.46,2.5465]
[1735064636514,3.68,196.48,196.34,19.92364215]
[1735064636716,3.68,196.48,196.35,4.25215619]
[1735064637016,3.68,196.48,196.36,0.93575619]
[1735064637213,3.68,196.48,196.44,2.5468]
[1735064637511,3.68,196.48,196.36,3.2487]
[1735064637715,2.5464,196.47,196.41,2.5471]
[1735064638017,3.68,196.48,196.41,2.5471]
[1735064638209,22.47024215,196.46,196.39,2.5474]
[1735064638413,22.47024215,196.46,196.36,3.2487]
[1735064638709,2.5467,196.45,196.39,2.5474]
[1735064638915,2.5467,196.45,196.36,3.2487]
[1735064640418,2.5467,196.45,196.4,2.5472]
[1735064641218,22.47014215,196.46,196.4,2.5472]
[1735064641711,3.68,196.48,196.36,3.2487]
[1735064641915,3.68,196.48,196.37,0.93600286]
[1735064642112,19.92364215,196.5,196.36,3.2487]
[1735064642113,3.68,196.47,196.36,3.2487]
[1735064642323,3.68,196.47,196.38,0.93592284]
[1735064642521,2.5467,196.45,196.36,3.2487]
[1735064642722,19.92364215,196.46,196.36,3.2487]
[1735064643219,2.5468,196.44,196.38,2.5474]
[1735064643614,2.5471,196.42,196.35,3.3164]
[1735064643818,3.66,196.41,196.37,2.5477]
[1735064644517,3.66,196.41,196.39,2.5474]
[1735064644920,3.66,196.41,196.35,3.3164]
[1735064645313,3.66,196.41,196.33,20.89653577]
[1735064645621,3.66,196.41,196.38,2.5475]
[1735064645820,3.66,196.41,196.33,20.89653577]
[1735064646016,3.66,196.41,196.34,24.56999224]
[1735064646923,3.66,196.41,196.35,24.56999224]
[1735064647116,3.3162,196.45,196.35,24.56999224]
[1735064647320,3.66,196.44,196.35,24.56999224]
[1735064647519,3.66,196.44,196.36,0.93595718]
[1735064647922,2.5463,196.48,196.37,20.89653577]
[1735064648123,3.66,196.47,196.43,2.5468]
[1735064648425,3.66,196.46,196.43,2.5468]
[1735064648819,3.66,196.46,196.37,20.89653577]
[1735064649024,12.44592397,196.49,196.45,2.5465]
[1735064649323,3.66,196.48,196.45,2.5465]
[1735064650619,12.44592397,196.46,196.43,20.89653577]
[1735064651123,2.5468,196.44,196.43,20.89653577]
[1735064651424,12.44592397,196.46,196.41,55.96014481]
[1735064651719,12.44592397,196.43,196.41,55.96014481]
[1735064651924,6.207,196.42,196.41,55.96014481]
[1735064652319,3.66,196.42,196.37,55.96014481]
[1735064653222,3.66,196.42,196.35,85.78511378]
[1735064653223,2.5474,196.4,196.35,2.5479]
[1735064653933,2.5474,196.4,196.36,2.5478]
[1735064654426,2.5474,196.4,196.33,70.37976135]
[1735064654613,6.2071,196.42,196.33,70.37976135]
[1735064655020,2.5471,196.42,196.33,70.37976135]
[1735064655222,3.66,196.41,196.35,2.5479]
[1735064655423,3.66,196.41,196.33,14.41961654]
[1735064655819,3.66,196.4,196.38,2.5475]
[1735064656225,3.66,196.4,196.37,2.5477]
[1735064656528,12.44592397,196.43,196.36,3.60729247]
[1735064656723,3.66,196.42,196.36,3.60729247]
[1735064657028,3.66,196.42,196.38,3.60729247]
[1735064657627,3.66,196.42,196.4,2.5472]
[1735064658234,3.66,196.42,196.37,56.5850544]
[1735064658428,3.66,196.42,196.41,2.5472]
[1735064659730,3.66,196.42,196.41,6.15996701]
[1735064660227,14.99242397,196.46,196.41,6.15996701]
[1735064660428,3.66,196.45,196.41,2.5472]
[1735064660826,2.5468,196.44,196.39,2.5474]
[1735064661026,3.66,196.45,196.38,92.66570727]
[1735064661429,3.66,196.45,196.39,3.61396346]
[1735064661931,6.2067,196.45,196.4,2.5472]
[1735064662132,12.44592397,196.43,196.39,3.61396346]
[1735064662333,12.44592397,196.43,196.38,14.44970391]
[1735064662631,14.99292397,196.43,196.38,16.99720391]
[1735064667033,14.99292397,196.43,196.38,2.5475]
[1735064667439,12.44592397,196.4,196.36,2.5477]
[1735064667637,3.66,196.39,196.33,71.04664651]
[1735064668238,2.5476,196.38,196.33,73.59484651]
[1735064668432,2.5476,196.38,196.34,3.61549952]
[1735064668833,2.5476,196.38,196.34,6.16359952]
[1735064669536,2.5476,196.38,196.34,2.5481]
[1735064670236,3.66,196.39,196.34,2.548]
[1735064670534,3.66,196.39,196.32,3.1801]
[1735064671127,6.419,196.53,196.33,12.44592397]
[1735064671330,2.5464,196.47,196.33,12.44592397]
[1735064671736,3.66,196.46,196.43,2.5469]
[1735064672037,3.66,196.46,196.36,12.44592397]
[1735064672337,3.66,196.46,196.44,2.5467]
[1735064672941,3.66,196.46,196.43,2.5469]
[1735064674239,3.66,196.46,196.38,3.274]
[1735064674441,12.44592397,196.45,196.38,3.274]
[1735064674644,12.44592397,196.42,196.38,3.274]
[1735064675642,14.99302397,196.42,196.38,3.274]
[1735064675842,12.44592397,196.42,196.38,3.274]
[1735064676032,14.99302397,196.42,196.38,3.274]
[1735064677337,2.5474,196.4,196.34,2.548]
[1735064677537,3.62,196.39,196.34,2.548]
[1735064677942,3.62,196.39,196.35,2.5478]
[1735064678338,3.62,196.39,196.32,6.2415]
[1735064678544,3.62,196.38,196.37,2.5477]
[1735064678945,3.62,196.38,196.32,6.2415]
[1735064679445,3.62,196.38,196.33,2.5481]
[1735064679645,3.62,196.38,196.32,3.0614]
[1735064680046,3.62,196.38,196.35,2.5479]
[1735064680249,3.62,196.39,196.32,3.0614]
[1735064680545,3.62,196.4,196.36,2.5478]
[1735064682644,6.1674,196.4,196.32,3.0614]
[1735064683139,3.62,196.4,196.32,3.0614]
[1735064683346,2.5477,196.37,196.32,5.6097]
[1735064683544,12.44592397,196.38,196.32,3.0614]
[1735064683845,2.5479,196.36,196.31,2.5484]
[1735064684247,12.44592397,196.38,196.3,21.24053284]
[1735064684450,14.99352397,196.38,196.32,2.5482]
[1735064684849,12.44592397,196.38,196.32,2.5482]
[1735064685547,12.44592397,196.38,196.33,2.5481]
[1735064685748,3.62,196.37,196.29,3.1583]
[1735064685953,12.44592397,196.44,196.3,12.44592397]
[1735064686155,6.167,196.43,196.3,12.44592397]
[1735064686452,3.62,196.42,196.3,16.06310896]
[1735064686654,14.99272397,196.44,196.3,16.06310896]
[1735064686853,3.62,196.41,196.3,16.06310896]
[1735064687246,3.62,196.41,196.4,2.5473]
[1735064687551,3.62,196.42,196.33,33.68645681]
[1735064688153,3.62,196.42,196.41,2.5471]
[1735064688456,3.62,196.44,196.35,21.24053284]
[1735064688749,6.419,196.53,196.44,2.5468]
[1735064688750,14.99202397,196.5,196.44,2.5468]
[1735064688950,12.44592397,196.5,196.39,12.44592397]
[1735064689155,3.62,196.49,196.39,12.44592397]
[1735064690353,3.62,196.5,196.47,2.5463]
[1735064691456,3.62,196.5,196.42,33.68645681]
[1735064692461,3.62,196.5,196.49,2.5461]
[1735064692963,67.89112397,196.56,196.51,2.5458]
[1735064692964,65.34592397,196.56,196.51,2.5458]